fUST/lending_fUST_20260107
["ID","MTS","AMOUNT","RATE_DAILY","PERIOD"]
[400653959,1767769838043,-500.0,0.00013053,2]
[400653960,1767769838052,-500.0,0.00013053,2]
[400653961,1767769838062,-500.0,0.00013053,2]
[400653962,1767769838071,-500.0,0.00013053,2]
[400653963,1767769838081,-500.0,0.00013053,2]
[400653964,1767769838090,-500.0,0.00013053,2]
[400653965,1767769838099,-500.0,0.00013053,2]
[400653966,1767769838108,-500.0,0.00013053,2]
[400653967,1767769838118,-500.0,0.00013053,2]
[400653968,1767769838128,-500.0,0.00013053,2]
[400653969,1767769838137,-500.0,0.00013053,2]
[400653970,1767769838147,-500.0,0.00013053,2]
[400653971,1767769838157,-500.0,0.00013053,2]
[400653972,1767769838167,-500.0,0.00013053,2]
[400653973,1767769838176,-500.0,0.00013053,2]
[400653974,1767769838186,-500.0,0.00013053,2]
[400653975,1767769838198,-500.0,0.00013053,2]
[400653976,1767769838208,-500.0,0.00013053,2]
[400653977,1767769838217,-500.0,0.00013053,2]
[400653978,1767769838227,-500.0,0.00013053,2]
[400653979,1767769838237,-500.0,0.00013053,2]
[400653980,1767769838248,-500.0,0.00013053,2]
[400653981,1767769838257,-500.0,0.00013053,2]
[400653982,1767769838269,-540.56759027,0.00013053,2]
[400653983,1767769838279,-500.0,0.00013053,2]
[400653984,1767769838288,-500.0,0.00013053,2]
[400653985,1767769838298,-500.0,0.00013053,2]
[400653986,1767769838307,-500.0,0.00013053,2]
[400653987,1767769838317,-500.0,0.00013053,2]
[400653988,1767769838327,-500.0,0.00013053,2]
[400653989,1767769838336,-500.0,0.00013053,2]
[400653990,1767769838345,-500.0,0.00013053,2]
[400653991,1767769838355,-500.0,0.00013053,2]
[400653992,1767769838365,-500.0,0.00013053,2]
[400653993,1767769838375,-500.0,0.00013053,2]
[400653994,1767769838385,-559.79530242,0.00013053,2]
[400653995,1767769838395,-500.0,0.00013053,2]
[400653996,1767769838405,-500.0,0.00013053,2]
[400653997,1767769838414,-500.0,0.00013053,2]
[400653998,1767769838423,-500.0,0.00013053,2]
[400653999,1767769838433,-500.0,0.00013053,2]
[400654000,1767769838442,-500.0,0.00013053,2]
[400654001,1767769838452,-500.0,0.00013053,2]
[400654002,1767769838461,-500.0,0.00013053,2]
[400654003,1767769838472,-500.0,0.00013053,2]
[400654004,1767769838481,-500.0,0.00013053,2]
[400654005,1767769838491,-500.0,0.00013053,2]
[400654006,1767769838501,-500.0,0.00013053,2]
[400654007,1767769838510,-550.0,0.00013053,2]
[400654008,1767769838520,-500.0,0.00013053,2]
[400654009,1767769838530,-500.0,0.00013053,2]
[400654010,1767769838539,-500.0,0.00013053,2]
[400654011,1767769838549,-500.0,0.00013053,2]
[400654012,1767769838558,-500.0,0.00013053,2]
[400654013,1767769838568,-500.0,0.00013053,2]
[400654014,1767769838578,-500.0,0.00013053,2]
[400654015,1767769838587,-500.0,0.00013053,2]
[400654016,1767769838596,-500.0,0.00013053,2]
[400654017,1767769838605,-500.0,0.00013053,2]
[400654018,1767769838614,-500.0,0.00013053,2]
[400654019,1767769838624,-500.0,0.00013053,2]
[400654020,1767769838635,-500.0,0.00013053,2]
[400654021,1767769838644,-500.0,0.00013053,2]
[400654022,1767769838653,-500.0,0.00013053,2]
[400654023,1767769838663,-500.0,0.00013053,2]
[400654024,1767769838672,-250.0,0.00013053,2]
[400654025,1767769838681,-500.0,0.00013053,2]
[400654026,1767769838690,-500.0,0.00013053,2]
[400654027,1767769838700,-500.0,0.00013053,2]
[400654028,1767769838709,-500.0,0.00013053,2]
[400654029,1767769838718,-500.0,0.00013053,2]
[400654030,1767769838728,-500.0,0.00013053,2]
[400654031,1767769838737,-500.0,0.00013053,2]
[400654032,1767769838747,-500.0,0.00013053,2]
[400654033,1767769838756,-612.59273889,0.00013053,2]
[400654034,1767769838766,-50000.0,0.00013054,2]
[400654035,1767769838775,-1000000.0,0.00013057,2]
[400654036,1767769838785,-2939.29944244,0.00013057,2]
[400654037,1767769838795,-300.0,0.00013157,2]
[400654038,1767769838804,-300.0,0.00013157,2]
[400654039,1767769838814,-300.0,0.00013157,2]
[400654040,1767769838824,-300.0,0.00013157,2]
[400654041,1767769838833,-300.0,0.00013157,2]
[400654042,1767769838843,-300.0,0.00013157,2]
[400654043,1767769838854,-300.0,0.00013157,2]
[400654044,1767769838864,-300.0,0.00013157,2]
[400654045,1767769838873,-300.0,0.00013157,2]
[400654046,1767769838883,-300.0,0.00013157,2]
[400654047,1767769838892,-300.0,0.00013157,2]
[400654048,1767769838902,-300.0,0.00013157,2]
[400654049,1767769838911,-300.0,0.00013157,2]
[400654050,1767769838921,-300.0,0.00013157,2]
[400654051,1767769838930,-300.0,0.00013157,2]
[400654052,1767769838940,-500.0,0.00013273,2]
[400654053,1767769838949,-500.0,0.00013273,2]
[400654054,1767769838959,-500.0,0.00013273,2]
[400654055,1767769838969,-300.0,0.00013673,2]
[400654056,1767769838978,-2245.401059,0.00013699,2]
[400654057,1767769838988,-636.08782837,0.00013699,2]
[400654058,1767769838998,-500.0,0.00013699,2]
[400654059,1767769839007,-500.0,0.00013699,2]
[400654060,1767769839017,-500.0,0.00013699,2]
[400654061,1767769839027,-500.0,0.00013699,2]
[400654062,1767769839037,-500.0,0.00013699,2]
[400654063,1767769839047,-1000.0,0.00013821,2]
[400654064,1767769839057,-1000.0,0.00013821,2]
[400654065,1767769839067,-1000.0,0.00013821,2]
[400654066,1767769839077,-8929.0,0.0001386,2]
[400654067,1767769839086,-246.76638848,0.00014175,2]
[400654068,1767769839095,-600.0,0.00014221,2]
[400654069,1767769839105,-502.70184396,0.00014247,2]
[400654070,1767769839115,-506.91111939,0.00014247,2]
[400654071,1767769839125,-1000.0,0.00014247,2]
[400654072,1767769839136,-1000.0,0.00014247,2]
[400654073,1767769839146,-1000.0,0.00014247,2]
[400654074,1767769839155,-1900.63149493,0.00014305,2]
[400654075,1767769839166,-420.0,0.00014313,2]
[400654076,1767769839175,-396.32219355,0.00014345,2]
[400654077,1767769839185,-1500.0,0.00014368,2]
[400654078,1767769839198,-1500.0,0.00014368,2]
[400654079,1767769839208,-1500.0,0.00014368,2]
[400654080,1767769839217,-900.0,0.00014768,2]
[400654081,1767769839227,-1500.0,0.00014795,2]
[400654082,1767769839236,-1500.0,0.00014795,2]
[400654083,1767769839246,-1500.0,0.00014795,2]
[400654084,1767769839256,-232.88281607,0.00014913,2]
[400654085,1767769839267,-2000.0,0.00014916,2]
[400654086,1767769839276,-2000.0,0.00014916,2]
[400654087,1767769839285,-2000.0,0.00014916,2]
[400654088,1767769839295,-1000.0,0.00015,2]
[400654089,1767769839304,-96492.33818534,0.00015028,2]
[400654090,1767769839314,-250.875815,0.00015068,2]
[400654091,1767769839324,-500.0,0.000152,2]
[400654092,1767769839335,-500.0,0.000152,2]
[400654093,1767769839344,-1200.0,0.00015316,2]
[400654094,1767769839354,-2000.0,0.00015342,2]
[400654095,1767769839363,-2000.0,0.00015342,2]
[400654096,1767769839373,-2000.0,0.00015342,2]
[400654097,1767769839383,-2500.0,0.00015464,2]
[400654098,1767769839392,-2500.0,0.00015464,2]
[400654099,1767769839403,-2500.0,0.00015464,2]
[400654100,1767769839413,-285.02,0.000156,2]
[400654101,1767769839423,-202.99,0.00015677,3]
[400654102,1767769839433,-587.0,0.00015695,2]
[400654103,1767769839443,-575.47010287,0.00015777,3]
[400654104,1767769839453,-303.39831266,0.00015864,2]
[400654105,1767769839462,-2500.0,0.0001589,2]
[400654106,1767769839471,-2500.0,0.0001589,2]
[400654107,1767769839480,-2500.0,0.0001589,2]
[400654108,1767769839490,-8929.0,0.00015939,2]
[400654109,1767769839499,-600.0,0.00015983,2]
[400654110,1767769839508,-3000.0,0.00016,2]
[400654111,1767769839517,-3000.0,0.0001601,2]
[400654112,1767769839526,-3000.0,0.00016012,2]
[400654113,1767769839535,-3000.0,0.00016012,2]
[400654114,1767769839543,-3000.0,0.00016012,2]
[400654115,1767769839553,-3000.0,0.0001602,2]
[400654116,1767769839562,-5490.925285,0.0001603,2]
[400654117,1767769839571,-4276.42086358,0.00016069,2]
[400654118,1767769839580,-7547.05666909,0.00016294,2]
[400654119,1767769839589,-3000.0,0.00016438,2]
[400654120,1767769839598,-3000.0,0.00016438,2]
[400654121,1767769839607,-3000.0,0.00016438,2]
[400654122,1767769839615,-3500.0,0.0001656,2]
[400654123,1767769839625,-2127.52709265,0.0001656,2]
[400654124,1767769839634,-3500.0,0.0001656,2]
[400654125,1767769839643,-250.0,0.00016777,2]
[400654126,1767769839652,-2939.29944241,0.00016777,2]
[400654127,1767769839660,-268.40731344,0.00016913,2]
[400654128,1767769839671,-3500.0,0.00016986,2]
[400654129,1767769839680,-3500.0,0.00016986,2]
[400654130,1767769839689,-3500.0,0.00016986,2]
[400654131,1767769839697,-4000.0,0.00017108,2]
[400654132,1767769839707,-4000.0,0.00017108,2]
[400654134,1767769839821,-500.0,0.000172,2]
[400654136,1767769839830,-823.0,0.00017212,2]
[400654138,1767769839839,-4000.0,0.00017534,2]
[400654139,1767769839849,-4000.0,0.00017534,2]
[400654140,1767769839858,-4000.0,0.00017534,2]
[400654142,1767769839867,-720.0,0.00017582,2]
[400654143,1767769839877,-4500.0,0.00017656,2]
[400654145,1767769839886,-4500.0,0.00017656,2]
[400654147,1767769839895,-7602.5259797,0.00017834,2]
[400654149,1767769839905,-4500.0,0.00018082,2]
[400654151,1767769839915,-4500.0,0.00018082,2]
[400654153,1767769839924,-882.05613913,0.00018082,2]
[400654155,1767769839933,-15924.46772426,0.00018082,3]
[400654157,1767769839942,-5000.0,0.00018204,2]
[400654159,1767769839951,-5000.0,0.00018204,2]
[400654161,1767769839960,-250.875815,0.00018493,2]
[400654163,1767769839969,-5000.0,0.0001863,2]
[400654165,1767769839979,-838.56279606,0.0001863,2]
[400654168,1767769839988,-997.06008616,0.00018641,9]
[400654170,1767769839997,-5590.5348424,0.00018752,2]
[400654171,1767769840007,-5500.0,0.00018752,2]
[400654173,1767769840016,-1041.66666667,0.00018823,2]
[400654176,1767769840025,-1152.0,0.00018874,2]
[400654178,1767769840035,-303.45210145,0.000189,2]
[400654180,1767769840044,-303.9318108,0.00018913,2]
[400654182,1767769840053,-160.0,0.00019151,3]
[400654184,1767769840062,-294.0771,0.00019178,2]
[400654185,1767769840071,-294.0771,0.00019178,3]
[400654187,1767769840080,-294.0771,0.00019178,4]
[400654190,1767769840090,-294.0771,0.00019178,2]
[400654192,1767769840099,-294.0771,0.00019178,3]
[400654194,1767769840109,-5011.36258874,0.00019178,2]
[400654196,1767769840118,-243.07,0.000192,2]
[400654198,1767769840127,-258.12,0.000192,2]
[400654200,1767769840136,-167.78,0.000192,2]
[400654202,1767769840145,-2200.51,0.000192,2]
[400654204,1767769840154,-6000.0,0.000193,2]
[400654206,1767769840164,-864.0,0.0001934,2]
[400654208,1767769840173,-7547.05666909,0.00019635,2]
[400654210,1767769840182,-230.7,0.00019726,2]
[400654212,1767769840194,-6500.0,0.00019848,2]
[400654214,1767769840204,-500.0,0.0002,7]
[400654216,1767769840214,-181.25348447,0.0002,2]
[400654218,1767769840223,-1972.0,0.0002,2]
[400654220,1767769840233,-210.20532748,0.0002,2]
[400654222,1767769840243,-1233.04888374,0.00020074,11]
[400654224,1767769840252,-2002.67735813,0.00020396,2]
[400654226,1767769840263,-2939.29944241,0.00020498,2]
[400654228,1767769840272,-2245.401059,0.00020548,2]
[400654230,1767769840282,-1613.0,0.00020698,2]
[400654232,1767769840292,-1038.0,0.00020701,2]
[400654234,1767769840301,-1038.0,0.00020702,2]
[400654236,1767769840311,-1038.0,0.0002073,2]
[400654238,1767769840319,-1038.0,0.00020787,2]
[400654240,1767769840328,-1038.0,0.00020907,2]
[400654242,1767769840338,-339.45630817,0.00020913,2]
[400654244,1767769840347,-1038.0,0.00020918,2]
[400654246,1767769840356,-1038.0,0.00020923,2]
[400654248,1767769840365,-3000.0,0.00021,2]
[400654250,1767769840374,-3000.0,0.0002101,2]
[400654252,1767769840383,-3000.0,0.0002102,2]
[400654254,1767769840394,-3000.0,0.0002103,2]
[400654256,1767769840405,-1038.0,0.00021031,2]
[400654258,1767769840414,-3000.0,0.0002104,2]
[400654260,1767769840426,-1038.0,0.00021046,2]
[400654262,1767769840435,-3000.0,0.0002105,2]
[400654264,1767769840445,-3000.0,0.0002106,2]
[400654266,1767769840454,-3000.0,0.0002107,2]
[400654267,1767769840463,-3000.0,0.0002108,2]
[400654269,1767769840472,-3000.0,0.0002109,2]
[400654272,1767769840482,-3000.0,0.000211,2]
[400654274,1767769840491,-3000.0,0.0002111,2]
[400654275,1767769840500,-3000.0,0.0002112,2]
[400654278,1767769840509,-3000.0,0.0002113,2]
[400654279,1767769840518,-3000.0,0.0002114,2]
[400654281,1767769840527,-3000.0,0.0002115,2]
[400654283,1767769840536,-3000.0,0.0002116,2]
[400654285,1767769840545,-3000.0,0.0002117,2]
[400654287,1767769840555,-3000.0,0.0002118,2]
[400654289,1767769840563,-1038.0,0.00021186,2]
[400654291,1767769840572,-3000.0,0.0002119,2]
[400654293,1767769840581,-3000.0,0.000212,2]
[400654295,1767769840590,-2200.51,0.000212,2]
[400654297,1767769840599,-3000.0,0.0002121,2]
[400654299,1767769840608,-3000.0,0.0002122,2]
[400654301,1767769840617,-1038.0,0.0002122,2]
[400654303,1767769840626,-3000.0,0.0002123,2]
[400654305,1767769840635,-3000.0,0.0002124,2]
[400654307,1767769840644,-3000.0,0.0002125,2]
[400654309,1767769840653,-3000.0,0.0002126,2]
[400654311,1767769840662,-1038.0,0.00021263,2]
[400654313,1767769840671,-3000.0,0.0002127,2]
[400654315,1767769840680,-1000.0,0.00021274,10]
[400654317,1767769840689,-3000.0,0.0002128,2]
[400654319,1767769840698,-3000.0,0.0002129,2]
[400654321,1767769840707,-3000.0,0.000213,2]
[400654323,1767769840716,-3000.0,0.0002131,2]
[400654325,1767769840725,-3000.0,0.0002132,2]
[400654327,1767769840734,-3000.0,0.0002133,2]
[400654329,1767769840744,-230.7,0.00021338,2]
[400654331,1767769840753,-3000.0,0.0002134,2]
[400654333,1767769840762,-168.0,0.00021342,4]
[400654335,1767769840771,-3000.0,0.0002135,2]
[400654337,1767769840780,-3000.0,0.0002136,2]
[400654339,1767769840789,-3000.0,0.0002137,2]
[400654341,1767769840798,-248.14949882,0.00021377,2]
[400654342,1767769840807,-1038.0,0.00021377,2]
[400654344,1767769840816,-1038.0,0.00021379,2]
[400654346,1767769840825,-3000.0,0.0002138,2]
[400654348,1767769840834,-3000.0,0.0002139,2]
[400654351,1767769840844,-3000.0,0.000214,2]
[400654352,1767769840853,-3000.0,0.0002141,2]
[400654354,1767769840862,-3000.0,0.0002142,2]
[400654356,1767769840871,-4963.577836,0.0002143,2]
[400654359,1767769840881,-1483.18443871,0.00021506,14]
[400654360,1767769840890,-1038.0,0.0002159,2]
[400654362,1767769840898,-243.07,0.000216,2]
[400654364,1767769840908,-258.12,0.000216,2]
[400654366,1767769840918,-1038.0,0.00021616,2]
[400654369,1767769840928,-1038.0,0.00021643,2]
[400654370,1767769840937,-1038.0,0.00021892,2]
[400654372,1767769840946,-250.875815,0.00021918,2]
[400654374,1767769840955,-1038.0,0.00021988,2]
[400654376,1767769840965,-1526.54,0.00022,7]
[400654378,1767769840975,-1038.0,0.00022052,2]
[400654381,1767769840984,-1038.0,0.00022122,2]
[400654383,1767769840994,-1038.0,0.00022256,2]
[400654385,1767769841003,-1038.0,0.00022258,2]
[400654387,1767769841012,-1038.0,0.00022411,2]
[400654388,1767769841021,-300.0,0.00022466,2]
[400654390,1767769841030,-378.17,0.000225,2]
[400654392,1767769841039,-1038.0,0.00022574,2]
[400654394,1767769841048,-861.0,0.00022698,2]
[400654396,1767769841058,-374.98080554,0.00022913,2]
[400654398,1767769841067,-1746.10539286,0.00022938,17]
[400654400,1767769841076,-230.7,0.0002295,2]
[400654402,1767769841085,-7547.05666909,0.00022976,2]
[400654404,1767769841095,-1041.66666667,0.00023,3]
[400654406,1767769841104,-2200.51,0.00023,14]
[400654408,1767769841113,-450.0,0.00023014,2]
[400654410,1767769841122,-1000.0,0.00023401,10]
[400654412,1767769841131,-244.0,0.00023401,10]
[400654414,1767769841140,-1600.0,0.0002341,2]
[400654416,1767769841149,-431.07580657,0.00023562,2]
[400654418,1767769841158,-1600.0,0.00023704,2]
[400654420,1767769841168,-1600.0,0.00023739,2]
[400654422,1767769841177,-500.0,0.0002381,2]
[400654424,1767769841187,-243.07,0.000239,7]
[400654426,1767769841199,-258.12,0.000239,7]
[400654428,1767769841208,-1000.0,0.000241,2]
[400654430,1767769841217,-1000.0,0.000241,2]
[400654432,1767769841226,-1600.0,0.00024197,2]
[400654434,1767769841237,-1000.0,0.000242,2]
[400654436,1767769841246,-1000.0,0.000242,2]
[400654438,1767769841256,-1000.0,0.000242,2]
[400654440,1767769841266,-1000.0,0.000242,2]
[400654442,1767769841275,-1000.0,0.000242,2]
[400654444,1767769841284,-1000.0,0.000242,2]
[400654446,1767769841294,-1000.0,0.000242,2]
[400654448,1767769841303,-1000.0,0.000242,2]
[400654450,1767769841312,-1600.0,0.00024213,2]
[400654452,1767769841321,-2939.29944241,0.00024218,2]
[400654454,1767769841330,-500.0,0.00024314,2]
[400654456,1767769841339,-587.58501506,0.00024335,2]
[400654458,1767769841348,-2020.74056678,0.0002437,19]
[400654460,1767769841358,-15924.41,0.000245,3]
[400654462,1767769841366,-230.7,0.00024561,2]
[400654464,1767769841376,-174.0,0.0002463,13]
[400654466,1767769841385,-1526.54,0.000247,7]
[400654468,1767769841395,-4022.84158778,0.000248,2]
[400654470,1767769841404,-83116.4033036,0.000248,2]
[400654472,1767769841413,-283.8,0.00024862,2]
[400654474,1767769841422,-622309.500941,0.000249,2]
[400654476,1767769841431,-2200.51,0.000249,14]
[400654478,1767769841440,-410.5053029,0.00024913,2]
[400654480,1767769841449,-152.02997996,0.00024932,2]
[400654482,1767769841459,-152.28064023,0.00025069,2]
[400654484,1767769841471,-250.0,0.00025205,2]
[400654486,1767769841480,-250.875815,0.00025342,2]
[400654488,1767769841489,-1600.0,0.00025348,7]
[400654490,1767769841498,-378.17,0.000254,2]
[400654492,1767769841507,-151.6519779,0.00025617,2]
[400654494,1767769841517,-173.31588371,0.00025617,2]
[400654496,1767769841526,-500.0,0.00025617,2]
[400654498,1767769841535,-154.51572359,0.00025617,2]
[400654500,1767769841544,-153.90091269,0.00025617,2]
[400654502,1767769841553,-500.0,0.00025617,2]
[400654504,1767769841562,-500.0,0.00025617,2]
[400654506,1767769841571,-500.0,0.00025617,2]
[400654508,1767769841581,-744.0,0.00025617,2]
[400654510,1767769841590,-150.75126271,0.00025617,2]
[400654512,1767769841599,-1000.0,0.00025741,10]
[400654514,1767769841608,-492.0,0.00025741,10]
[400654516,1767769841617,-350.0,0.00025753,2]
[400654518,1767769841626,-150.84496799,0.00025754,2]
[400654520,1767769841636,-500.0,0.00025754,2]
[400654522,1767769841647,-500.0,0.00025754,2]
[400654524,1767769841656,-500.0,0.00025754,2]
[400654526,1767769841666,-500.0,0.00025754,2]
[400654528,1767769841675,-744.0,0.00025754,2]
[400654530,1767769841684,-243.07,0.000258,7]
[400654532,1767769841694,-258.12,0.000258,7]
[400654534,1767769841703,-2306.22078865,0.00025802,22]
[400654536,1767769841713,-500.0,0.00025891,2]
[400654538,1767769841722,-154.05358702,0.00025891,2]
[400654540,1767769841732,-595.12568369,0.00025891,2]
[400654542,1767769841741,-500.0,0.00025891,2]
[400654544,1767769841750,-259.14783661,0.00025891,2]
[400654546,1767769841759,-744.0,0.00025891,2]
[400654548,1767769841768,-500.0,0.00026028,2]
[400654550,1767769841778,-744.0,0.00026028,2]
[400654552,1767769841787,-500.0,0.00026165,2]
[400654554,1767769841795,-744.0,0.00026165,2]
[400654556,1767769841805,-230.7,0.00026173,2]
[400654558,1767769841814,-1526.54,0.000262,7]
[400654560,1767769841822,-4022.84158778,0.00026209,2]
[400654562,1767769841831,-450.0,0.00026301,2]
[400654564,1767769841840,-500.0,0.00026302,2]
[400654566,1767769841849,-744.0,0.00026302,2]
[400654568,1767769841858,-7547.05666909,0.00026317,2]
[400654570,1767769841867,-1974.17602471,0.00026413,2]
[400654572,1767769841877,-509.34709244,0.00026439,2]
[400654574,1767769841887,-744.0,0.00026439,2]
[400654577,1767769841896,-1600.0,0.00026441,7]
[400654579,1767769841905,-744.0,0.00026576,2]
[400654580,1767769841914,-744.0,0.00026713,2]
[400654583,1767769841923,-2200.51,0.000268,14]
[400654584,1767769841933,-550.0,0.00026849,2]
[400654587,1767769841942,-744.0,0.0002685,2]
[400654588,1767769841951,-30000.0,0.0002687,2]
[400654591,1767769841961,-151.0,0.0002687,2]
[400654593,1767769841970,-156.587,0.0002687,2]
[400654594,1767769841979,-151.76560532,0.0002687,2]
[400654597,1767769841989,-879.43912167,0.0002687,2]
[400654598,1767769841998,-446.02980027,0.00026913,2]
[400654600,1767769842008,-500.0,0.00026942,7]
[400654602,1767769842018,-744.0,0.00026987,2]
[400654604,1767769842027,-1041.66666667,0.00027,7]
[400654607,1767769842036,-1600.0,0.00027005,7]
[400654608,1767769842045,-744.0,0.00027124,2]
[400654611,1767769842055,-1600.0,0.00027134,7]
[400654613,1767769842064,-500.0,0.00027228,7]
[400654614,1767769842073,-2601.82389179,0.00027234,25]
[400654616,1767769842082,-744.0,0.00027261,2]
[400654619,1767769842093,-1346.23,0.00027397,2]
[400654630,1767769842102,-650.0,0.00027397,5]
[400654633,1767769842210,-514.81933417,0.00027397,5]
[400654635,1767769842220,-744.0,0.00027398,2]
[400654637,1767769842229,-243.07,0.000274,7]
[400654638,1767769842238,-258.12,0.000274,7]
[400654641,1767769842248,-31110.0,0.00027418,2]
[400654642,1767769842257,-1526.54,0.000275,7]
[400654645,1767769842269,-744.0,0.00027535,2]
[400654647,1767769842278,-206.87458235,0.00027553,17]
[400654649,1767769842288,-4022.84158778,0.00027619,2]
[400654651,1767769842297,-1600.0,0.00027645,7]
[400654652,1767769842306,-744.0,0.00027672,2]
[400654654,1767769842315,-230.7,0.00027785,2]
[400654657,1767769842324,-1600.0,0.00027808,7]
[400654658,1767769842333,-744.0,0.00027809,2]
[400654660,1767769842343,-176.0,0.00027918,26]
[400654662,1767769842352,-1600.0,0.00027932,7]
[400654664,1767769842361,-2939.29944241,0.00027938,2]
[400654666,1767769842371,-750.0,0.00027945,5]
[400654668,1767769842381,-250.0,0.00027945,5]
[400654670,1767769842391,-250.0,0.00027945,5]
[400654672,1767769842400,-744.0,0.00027946,2]
[400654674,1767769842409,-32261.07,0.00027966,2]
[400654676,1767769842418,-365.35,0.00028038,18]
[400654678,1767769842428,-184.475,0.00028038,18]
[400654680,1767769842437,-5000.0,0.00028038,2]
[400654682,1767769842446,-2000.0,0.00028076,7]
[400654684,1767769842454,-744.0,0.00028083,2]
[400654687,1767769842463,-744.0,0.0002822,2]
[400654689,1767769842473,-2200.51,0.000283,14]
[400654691,1767769842482,-1000.0,0.00028315,30]
[400654693,1767769842492,-791.0,0.00028315,30]
[400654695,1767769842501,-1600.0,0.00028351,7]
[400654697,1767769842511,-744.0,0.00028357,2]
[400654700,1767769842522,-850.0,0.00028493,5]
[400654702,1767769842532,-350.0,0.00028493,5]
[400654703,1767769842542,-350.0,0.00028493,5]
[400654705,1767769842551,-744.0,0.00028494,2]
[400654707,1767769842561,-1600.0,0.00028501,7]
[400654709,1767769842570,-33454.72959,0.00028514,2]
[400654711,1767769842579,-5261.40308802,0.0002854,2]
[400654713,1767769842589,-744.0,0.00028631,2]
[400654715,1767769842598,-2906.93844675,0.00028666,28]
[400654718,1767769842607,-280.28268334,0.00028667,7]
[400654720,1767769842616,-2000.0,0.00028672,7]
[400654722,1767769842625,-378.17,0.000287,2]
[400654723,1767769842636,-15924.41,0.000287,3]
[400654725,1767769842645,-500.0,0.00028731,7]
[400654727,1767769842655,-1346.23,0.00028767,4]
[400654729,1767769842664,-250.875815,0.00028767,60]
[400654731,1767769842673,-764.60396294,0.00028768,2]
[400654733,1767769842682,-1526.54,0.000288,7]
[400654735,1767769842691,-167.78,0.000288,7]
[400654737,1767769842700,-500.0,0.00028897,7]
[400654739,1767769842710,-243.07,0.000289,7]
[400654741,1767769842719,-258.12,0.000289,7]
[400654743,1767769842728,-481.55429764,0.00028913,2]
[400654745,1767769842737,-300.0,0.00028986,2]
[400654747,1767769842747,-300.0,0.00028986,2]
[400654749,1767769842756,-300.0,0.00028986,2]
[400654751,1767769842765,-300.0,0.00028986,2]
[400654753,1767769842774,-300.0,0.00028986,2]
[400654755,1767769842783,-300.0,0.00028986,2]
[400654757,1767769842792,-1600.0,0.00028992,7]
[400654759,1767769842801,-1600.0,0.00028998,7]
[400654761,1767769842810,-1041.66666667,0.00029,3]
[400654763,1767769842819,-300.0,0.00029014,2]
[400654765,1767769842828,-300.0,0.00029014,2]
[400654767,1767769842837,-4022.84158778,0.00029028,2]
[400654769,1767769842846,-950.0,0.00029041,5]
[400654771,1767769842855,-450.0,0.00029041,5]
[400654773,1767769842864,-450.0,0.00029041,5]
[400654775,1767769842874,-34692.55458483,0.00029062,2]
[400654777,1767769842883,-500.0,0.00029263,7]
[400654779,1767769842892,-2000.0,0.00029268,7]
[400654781,1767769842901,-500.0,0.0002932,7]
[400654783,1767769842910,-500.0,0.00029362,7]
[400654785,1767769842920,-230.7,0.00029397,3]
[400654787,1767769842929,-1050.0,0.00029589,5]
[400654789,1767769842938,-550.0,0.00029589,5]
[400654791,1767769842947,-550.0,0.00029589,5]